bitfinex-derivatives/quotes_BTCF0:USTF0_20220103
["timestamp","ask_amount","ask_price","bid_price","bid_amount"]
[1641170907782,0.69615744,47126.0,47121.0,0.02]
[1641170908982,0.50115744,47126.0,47121.0,0.02]
[1641170909684,0.69615744,47126.0,47121.0,0.02]
[1641170910384,0.36082177,47125.0,47121.0,0.02]
[1641170911685,0.55782177,47125.0,47121.0,0.02]
[1641170912092,0.197,47125.0,47121.0,0.02]
[1641170913093,0.50115744,47126.0,47121.0,0.02]
[1641170913488,0.14033567,47126.0,47121.0,0.02]
[1641170913687,0.1104022,47124.0,47122.0,0.83630492]
[1641170914888,0.1104022,47125.0,47122.0,0.83630492]
[1641170915792,0.2974022,47125.0,47122.0,0.94030492]
[1641170916492,0.2974022,47125.0,47122.0,0.104]
[1641170917093,0.1104022,47125.0,47121.0,0.85630492]
[1641170917295,0.1104022,47124.0,47122.0,0.83630492]
[1641170918898,0.3074022,47125.0,47121.0,0.85630492]
[1641170919100,0.1104022,47125.0,47121.0,0.85630492]
[1641170919695,0.3044022,47125.0,47121.0,0.85630492]
[1641170919893,0.1104022,47124.0,47121.0,0.85630492]
[1641170921002,0.1104022,47124.0,47121.0,0.02]
[1641170921201,0.18995495,47123.0,47121.0,0.02]
[1641170921701,0.38495495,47123.0,47121.0,0.02]
[1641170922502,0.195,47123.0,47121.0,0.02]
[1641170922903,0.1104022,47122.0,47121.0,0.02]
[1641170923703,0.2854022,47122.0,47121.0,0.18]
[1641170924305,0.175,47122.0,47121.0,0.18]
[1641170925809,0.2894022,47122.0,47121.0,0.125]
[1641170927015,0.2894022,47122.0,47121.0,0.02]
[1641170927215,0.1104022,47122.0,47121.0,0.02]
[1641170927615,1.4458053,47127.0,47121.0,0.02]
[1641170927815,0.176,47122.0,47121.0,0.301414]
[1641170928418,0.176,47122.0,47121.0,0.44174967]
[1641170929116,1.4458053,47127.0,47121.0,0.26374967]
[1641170929317,0.84311426,47123.0,47121.0,0.26374967]
[1641170929717,0.84311426,47123.0,47121.0,0.44874967]
[1641170931022,0.84311426,47124.0,47122.0,0.83657841]
[1641170931819,0.84311426,47124.0,47123.0,0.83657841]
[1641170933721,0.84311426,47124.0,47123.0,1.03157841]
[1641170934419,0.0001,47130.0,47123.0,1.03157841]
[1641170934622,0.0001,47130.0,47123.0,0.195]
[1641170935020,0.0001,47130.0,47122.0,0.83657841]
[1641170935721,0.1521,47130.0,47122.0,0.99457841]
[1641170935921,0.1521,47130.0,47122.0,0.158]
[1641170936424,0.1521,47130.0,47126.0,0.14033567]
[1641170937029,0.0001,47130.0,47126.0,0.14033567]
[1641170937725,0.1811,47130.0,47126.0,0.29433567]
[1641170939127,0.0001,47130.0,47126.0,0.14033567]
[1641170939726,0.1791,47130.0,47126.0,0.29933567]
[1641170940127,1.55681921,47129.0,47126.0,0.29933567]
[1641170940527,1.4458053,47129.0,47126.0,0.29933567]
[1641170941127,1.4458053,47129.0,47126.0,0.14033567]
[1641170941827,1.6118053,47129.0,47126.0,0.30933567]
[1641170942428,1.6118053,47129.0,47126.0,0.169]
[1641170942830,1.6118053,47129.0,47126.0,0.30933567]
[1641170943029,1.6118053,47129.0,47126.0,0.14033567]
[1641170943230,1.4458053,47129.0,47126.0,0.14033567]
[1641170943633,0.11115542,47128.0,47126.0,0.14033567]
[1641170943830,0.11115542,47128.0,47126.0,0.30533567]
[1641170945133,0.11115542,47128.0,47126.0,0.14033567]
[1641170945835,0.23415542,47128.0,47126.0,0.32433567]
[1641170946234,0.123,47128.0,47126.0,0.32433567]
[1641170947134,1.4459053,47130.0,47126.0,0.14033567]
[1641170947334,0.11115542,47127.0,47126.0,0.14033567]
[1641170947735,0.11115542,47127.0,47126.0,0.16933567]
[1641170948436,1.6059053,47130.0,47126.0,0.16933567]
[1641170949138,0.11115542,47129.0,47126.0,0.16933567]
[1641170949835,0.11115542,47128.0,47126.0,0.30633567]
[1641170951137,0.11115542,47127.0,47126.0,0.14033567]
[1641170951839,0.22815542,47127.0,47126.0,0.32933567]
[1641170953140,0.11115542,47127.0,47126.0,0.14033567]
[1641170953843,0.24215542,47127.0,47126.0,0.32933567]
[1641170955143,0.11115542,47127.0,47126.0,0.14033567]
[1641170955845,0.21015542,47127.0,47126.0,0.32633567]
[1641170957147,0.11115542,47127.0,47126.0,0.14033567]
[1641170957748,0.11115542,47127.0,47126.0,0.32933567]
[1641170957949,0.23015542,47127.0,47126.0,0.32933567]
[1641170959149,0.11115542,47127.0,47126.0,0.14033567]
[1641170959951,0.21015542,47127.0,47126.0,0.32633567]
[1641170960954,0.21015542,47127.0,47126.0,0.42201967]
[1641170961157,0.11115542,47127.0,47126.0,0.23601967]
[1641170961757,0.0001,47130.0,47126.0,0.23601967]
[1641170961958,0.0001,47130.0,47129.0,0.18]
[1641170962958,0.0001,47130.0,47129.0,2.75479915]
[1641170963960,0.0001,47130.0,47129.0,2.94279915]
[1641170964961,0.0001,47130.0,47129.0,2.96401674]
[1641170965162,0.0001,47130.0,47129.0,2.78401674]
[1641170965363,0.0001,47130.0,47129.0,2.59601674]
[1641170965963,0.6020049,47130.0,47129.0,2.78301674]
[1641170966563,0.0001,47130.0,47129.0,2.78301674]
[1641170967663,0.0001,47130.0,47129.0,0.20821759]
[1641170969170,0.0001,47130.0,47129.0,0.20121759]
[1641170969874,0.0001,47130.0,47129.0,0.38921759]
[1641170970070,0.0001,47130.0,47129.0,0.20921759]
[1641170970673,0.0001,47130.0,47129.0,0.38921759]
[1641170971170,0.0001,47130.0,47129.0,0.20121759]
[1641170971371,0.0001,47130.0,47129.0,0.02121759]
[1641170971870,0.0001,47130.0,47129.0,0.20921759]
[1641170972573,0.0001,47130.0,47129.0,1.04519708]
[1641170973170,0.0001,47130.0,47129.0,0.85719708]
[1641170973972,0.0001,47130.0,47129.0,1.04519708]
[1641170974174,0.0001,47130.0,47129.0,0.20921759]
[1641170975175,0.0001,47130.0,47129.0,0.02121759]
[1641170975978,0.0001,47130.0,47129.0,0.20921759]
[1641170977178,0.0001,47130.0,47129.0,0.02121759]
[1641170977893,0.0001,47130.0,47129.0,0.20921759]
[1641170978883,0.95410644,47130.0,47129.0,0.20921759]
[1641170979183,0.95410644,47130.0,47129.0,0.02121759]
[1641170979683,0.11144586,47130.0,47129.0,0.02121759]
[1641170979882,0.11144586,47130.0,47129.0,0.20921759]
[1641170980682,0.60199689,47130.0,47129.0,0.20921759]
[1641170981284,0.11111988,47130.0,47129.0,0.02121759]
[1641170981882,0.11111988,47130.0,47129.0,0.20921759]
[1641170982486,0.11111988,47130.0,47129.0,0.188]
[1641170983090,0.11111988,47130.0,47126.0,0.14033567]
[1641170983987,0.29611988,47130.0,47126.0,0.30833567]
[1641170985292,0.11101988,47129.0,47126.0,0.30833567]
[1641170985890,0.29401988,47129.0,47126.0,0.30933567]
[1641170986792,0.47401988,47129.0,47126.0,0.30933567]
[1641170986993,0.29401988,47129.0,47126.0,0.30933567]
[1641170987194,0.11101988,47129.0,47126.0,0.14033567]
[1641170987696,0.11101988,47128.0,47126.0,0.14033567]
[1641170987995,0.11101988,47128.0,47126.0,0.30833567]
[1641170988197,0.181,47129.0,47126.0,0.30833567]
[1641170988995,0.11101988,47128.0,47126.0,0.30833567]
[1641170989195,0.11101988,47128.0,47126.0,0.14033567]
[1641170989896,0.29201988,47128.0,47126.0,0.31133567]
[1641170990699,0.11101988,47127.0,47126.0,0.31133567]
[1641170991998,0.29401988,47127.0,47126.0,0.48433567]
[1641170993301,0.29401988,47127.0,47126.0,0.31333567]
[1641170993500,0.11101988,47127.0,47126.0,0.14033567]
[1641170994000,0.29401988,47127.0,47126.0,0.31333567]
[1641170995402,0.11101988,47127.0,47126.0,0.14033567]
[1641170996004,0.29201988,47127.0,47126.0,0.31133567]
[1641170996404,0.181,47127.0,47126.0,0.31133567]
[1641170997305,0.11101988,47127.0,47126.0,0.14033567]
[1641170997505,0.11101988,47127.0,47122.0,0.14033567]
[1641170997906,0.11101988,47127.0,47122.0,0.31133567]
[1641170998106,0.181,47127.0,47122.0,0.31133567]
[1641170999407,0.84279812,47123.0,47122.0,0.14033567]
[1641171000106,1.02079812,47123.0,47122.0,0.32033567]
[1641171000307,0.178,47123.0,47122.0,0.32033567]
[1641171000508,0.77985122,47123.0,47122.0,0.32033567]
[1641171001308,0.96295013,47123.0,47122.0,0.14033567]
[1641171001510,0.36109891,47123.0,47122.0,0.14033567]
[1641171002112,0.36109891,47123.0,47122.0,0.32633567]
[1641171005313,0.36109891,47123.0,47122.0,0.14033567]
[1641171006014,0.36109891,47123.0,47122.0,0.32533567]
[1641171007416,0.36109891,47123.0,47122.0,0.14033567]
[1641171008119,0.36109891,47123.0,47122.0,0.32733567]
[1641171009317,0.36109891,47124.0,47122.0,0.14033567]
[1641171010031,0.36109891,47124.0,47122.0,0.32533567]
[1641171010032,0.53409891,47124.0,47122.0,0.32533567]
[1641171011135,0.53409891,47124.0,47122.0,0.50533567]
[1641171011336,0.60185122,47126.0,47123.0,0.02121905]
[1641171011535,0.0001,47130.0,47125.0,0.32033567]
[1641171012138,0.0001,47130.0,47125.0,0.51033567]
[1641171012637,0.0001,47140.0,47129.0,0.18]
[1641171012837,1.4459053,47140.0,47130.0,0.009794]
[1641171013037,0.10516403,47135.0,47130.0,0.009794]
[1641171013238,0.61727482,47140.0,47133.0,0.18]
[1641171013436,0.61727482,47140.0,47139.0,0.14033567]
[1641171013637,0.61727482,47140.0,47139.0,0.21241567]
[1641171014136,0.1801,47150.0,47139.0,0.40641567]
[1641171015437,0.1801,47150.0,47139.0,0.21241567]
[1641171016039,0.1801,47150.0,47139.0,0.39941567]
[1641171017440,0.1801,47150.0,47139.0,0.21241567]
[1641171018042,0.1801,47150.0,47139.0,0.39941567]
[1641171018542,1.44395575,47149.0,47139.0,0.39941567]
[1641171019546,1.44395575,47149.0,47139.0,0.21241567]
[1641171020046,1.44395575,47149.0,47139.0,0.40141567]
[1641171020647,0.84229956,47140.0,47139.0,0.40141567]
[1641171021249,0.84229956,47141.0,47139.0,0.40141567]
[1641171021449,0.84229956,47141.0,47139.0,0.21241567]
[1641171022155,0.84229956,47141.0,47139.0,0.40641567]
[1641171023150,1.62405575,47150.0,47139.0,0.40641567]
[1641171023351,1.62405575,47150.0,47139.0,0.21241567]
[1641171023559,1.44395575,47144.0,47139.0,0.21241567]
[1641171023754,1.44395575,47144.0,47140.0,0.59555649]
[1641171025152,1.44395575,47144.0,47139.0,0.99997216]
[1641171025352,1.44395575,47144.0,47139.0,0.80797216]
[1641171025753,1.44395575,47144.0,47140.0,0.18]
[1641171025954,1.44395575,47144.0,47141.0,0.009794]
[1641171026563,1.44395575,47144.0,47143.0,0.001]
[1641171026756,1.44395575,47148.0,47143.0,0.001]
[1641171026955,1.44395575,47148.0,47142.0,0.92334302]
[1641171027755,1.44395575,47148.0,47147.0,0.14033567]
[1641171027955,1.44405575,47150.0,47147.0,0.14033567]
[1641171028957,1.44405575,47150.0,47147.0,0.16154508]
[1641171030061,1.44405575,47150.0,47147.0,0.35654508]
[1641171030460,0.0001,47150.0,47147.0,0.95169945]
[1641171031961,0.0001,47150.0,47148.0,0.14033567]
[1641171032962,0.0001,47150.0,47148.0,0.73549004]
[1641171033963,0.0001,47150.0,47148.0,0.14033567]
[1641171034163,0.0001,47150.0,47148.0,0.33633567]
[1641171035365,0.0001,47150.0,47148.0,0.14033567]
[1641171036166,0.0001,47150.0,47148.0,0.33533567]
[1641171037367,0.0001,47150.0,47148.0,0.14033567]
[1641171038068,0.0001,47150.0,47148.0,0.33233567]
[1641171039669,0.0001,47150.0,47148.0,0.14033567]
[1641171040069,0.0001,47150.0,47148.0,0.33233567]
[1641171041570,0.0001,47150.0,47148.0,0.14033567]
[1641171042170,0.0001,47150.0,47148.0,0.33233567]
[1641171043071,0.0001,47150.0,47149.0,1.54443917]
[1641171043283,0.0001,47150.0,47149.0,1.93042217]
[1641171044281,0.0001,47150.0,47149.0,1.01342217]
[1641171044480,0.0001,47150.0,47149.0,0.83342217]
[1641171045582,0.0001,47150.0,47149.0,0.64142217]
[1641171045981,0.0001,47150.0,47149.0,0.0898869]
[1641171046181,0.0001,47150.0,47149.0,0.4618869]
[1641171046482,0.0001,47150.0,47149.0,1.99507085]
[1641171046682,0.0001,47150.0,47149.0,1.20244085]
[1641171047385,0.0001,47150.0,47149.0,1.02244085]
[1641171047585,0.0001,47150.0,47149.0,0.0898869]
[1641171048185,0.0001,47150.0,47149.0,0.4628869]
[1641171048387,0.0001,47150.0,47149.0,1.5718869]
[1641171048585,0.0001,47150.0,47149.0,1.8879729]
[1641171048884,0.0001,47150.0,47149.0,0.7789729]
[1641171049085,0.0001,47150.0,47149.0,0.4628869]
[1641171049285,0.0001,47150.0,47149.0,1.29377119]
[1641171049487,0.0001,47150.0,47149.0,2.20977119]
[1641171049688,0.0001,47150.0,47149.0,2.50743829]
[1641171049986,0.0001,47150.0,47149.0,1.39843829]
[1641171050189,0.0001,47150.0,47149.0,1.59043829]
[1641171050587,0.0001,47150.0,47149.0,2.69943829]
[1641171050789,0.0001,47150.0,47149.0,2.72064294]
[1641171051591,1.44395575,47156.0,47152.0,0.33644817]
[1641171051790,1.44395575,47156.0,47154.0,0.18]
[1641171052194,1.44395575,47156.0,47155.0,0.14033567]
[1641171053498,0.0001,47160.0,47155.0,0.14033567]
[1641171054096,0.0001,47160.0,47155.0,0.28067134]
[1641171054295,0.0001,47160.0,47155.0,0.47067134]
[1641171054694,0.0001,47160.0,47156.0,0.319662]
[1641171055096,0.0001,47160.0,47155.0,0.47067134]
[1641171055299,1.44510851,47156.0,47155.0,0.47067134]
[1641171055497,1.44510851,47156.0,47155.0,0.28067134]
[1641171056201,0.0001,47160.0,47155.0,0.47267134]
[1641171056202,1.44510851,47158.0,47155.0,0.47267134]
[1641171056601,1.44510851,47158.0,47155.0,1.58167134]
[1641171056799,1.44510851,47158.0,47156.0,1.109]
[1641171056999,1.44510851,47158.0,47156.0,0.317907]
[1641171058199,1.44510851,47158.0,47156.0,0.508907]
[1641171058808,1.44510851,47158.0,47156.0,1.617907]
[1641171059009,1.44510851,47158.0,47157.0,1.298794]
[1641171059402,0.20510851,47158.0,47157.0,1.617307]
[1641171060102,0.04709561,47158.0,47157.0,1.438307]
[1641171060301,0.0001,47160.0,47157.0,1.438307]
[1641171060302,0.0001,47160.0,47157.0,1.83150939]
[1641171060500,0.0001,47160.0,47157.0,1.83050939]
[1641171061502,0.0001,47160.0,47157.0,1.63850939]
[1641171062103,0.0001,47160.0,47159.0,1.93999792]
[1641171062304,0.0001,47160.0,47159.0,2.08033359]
[1641171062503,0.0001,47160.0,47159.0,2.40012159]
[1641171063304,0.0001,47160.0,47159.0,1.56912367]
[1641171064305,0.0001,47160.0,47159.0,1.76212367]
[1641171065814,0.0001,47160.0,47159.0,2.18621409]
[1641171067512,0.0001,47160.0,47159.0,1.99321409]
[1641171068312,0.0001,47160.0,47159.0,2.18621409]
[1641171069513,0.0001,47160.0,47159.0,1.99321409]
[1641171070212,0.0001,47160.0,47159.0,2.18621409]
[1641171071717,0.0001,47160.0,47159.0,1.99321409]
[1641171072416,0.0001,47160.0,47159.0,2.18621409]
[1641171073617,0.0001,47160.0,47159.0,1.99321409]
[1641171074420,0.0001,47160.0,47159.0,2.18621409]
[1641171074619,0.0001,47160.0,47159.0,2.18621917]
[1641171075620,0.0001,47160.0,47159.0,1.99321917]
[1641171076420,0.0001,47160.0,47159.0,2.18621917]
[1641171077120,0.36055336,47166.0,47164.0,1.109]
[1641171077321,0.36055336,47166.0,47165.0,0.009794]
[1641171077619,0.36055336,47166.0,47165.0,0.323626]
[1641171078022,0.96147562,47167.0,47165.0,0.323626]
[1641171078221,0.36055336,47167.0,47165.0,0.323626]
[1641171078421,0.36055336,47167.0,47166.0,0.28067134]
[1641171078823,0.36055336,47167.0,47166.0,1.41087046]
[1641171079023,0.0001,47170.0,47166.0,1.41087046]
[1641171079223,0.0001,47170.0,47169.0,0.18]
[1641171079625,0.0001,47170.0,47169.0,0.26899115]
[1641171080024,0.0001,47170.0,47169.0,1.37899115]
[1641171080424,0.0001,47170.0,47169.0,2.03024282]
[1641171081524,0.0001,47170.0,47169.0,1.83524282]
[1641171082426,0.84255264,47172.0,47170.0,0.009794]
[1641171082626,0.60182332,47171.0,47170.0,0.009794]
[1641171082826,0.60182332,47171.0,47170.0,1.299794]
[1641171083025,0.60182332,47171.0,47170.0,1.301252]
[1641171083226,0.96290399,47171.0,47170.0,1.301252]
[1641171083427,0.13460399,47171.0,47170.0,1.33448307]
[1641171083627,0.13460399,47171.0,47170.0,1.554447]
[1641171083828,0.13460399,47171.0,47170.0,2.614431]
[1641171084229,0.84255264,47174.0,47170.0,2.59323562]
[1641171084440,0.52915264,47174.0,47173.0,1.43033567]
[1641171084641,0.52915264,47174.0,47173.0,1.93910061]
[1641171084839,0.0001,47180.0,47173.0,2.25695561]
[1641171085039,0.0001,47180.0,47179.0,1.109]
[1641171085441,0.0001,47180.0,47179.0,1.426439]
[1641171085640,0.0001,47180.0,47179.0,1.606439]
[1641171086343,0.0001,47180.0,47179.0,3.05722345]
[1641171086541,0.0001,47180.0,47179.0,3.33789479]
[1641171086941,0.0001,47180.0,47179.0,2.15252034]
[1641171087741,0.0001,47180.0,47179.0,1.95952034]
[1641171088442,0.0001,47180.0,47179.0,2.15452034]
[1641171088842,0.0001,47180.0,47179.0,2.15352034]
[1641171089141,0.0001,47180.0,47179.0,2.15452034]
[1641171089342,0.0001,47180.0,47179.0,2.15352034]
[1641171089743,0.0001,47180.0,47179.0,1.97352034]
[1641171090041,0.0001,47180.0,47179.0,1.97452034]
[1641171090242,0.0001,47180.0,47179.0,1.78052034]
[1641171090441,0.0001,47180.0,47179.0,1.97352034]
[1641171091042,0.0001,47180.0,47179.0,1.97452034]
[1641171091543,0.0001,47180.0,47179.0,1.78052034]
[1641171092244,0.0001,47180.0,47179.0,2.28921067]
[1641171092443,0.0001,47180.0,47179.0,2.48321067]
[1641171092944,0.0001,47180.0,47179.0,1.37321067]
[1641171093143,0.0001,47180.0,47179.0,0.79211034]
[1641171093343,0.0001,47180.0,47179.0,0.47467134]
[1641171093744,0.1801,47180.0,47179.0,0.28067134]
[1641171094344,0.1801,47180.0,47179.0,0.47467134]
[1641171095545,0.1801,47180.0,47179.0,1.58367134]
[1641171095546,0.0001,47180.0,47179.0,1.58367134]
[1641171095845,0.0001,47180.0,47179.0,1.77701134]
[1641171096245,0.0001,47180.0,47179.0,0.66801134]
[1641171096445,0.0001,47180.0,47179.0,0.86101134]
[1641171096645,0.0001,47180.0,47179.0,1.97001134]
[1641171097649,0.0001,47180.0,47179.0,1.77701134]
[1641171098347,0.0001,47180.0,47179.0,1.97001134]
[1641171099748,0.0001,47180.0,47179.0,1.77701134]
[1641171100351,0.0001,47180.0,47179.0,1.97001134]
[1641171101750,0.0001,47180.0,47179.0,1.77701134]
[1641171102354,0.0001,47180.0,47179.0,1.97001134]
[1641171103652,0.0001,47180.0,47179.0,1.77701134]
[1641171104452,0.0001,47180.0,47179.0,1.97001134]
[1641171105754,0.0001,47180.0,47179.0,1.77701134]
[1641171106354,0.0001,47180.0,47179.0,1.97001134]
[1641171107356,0.0001,47190.0,47183.0,1.109]
[1641171107555,0.0001,47190.0,47185.0,1.109]
[1641171107955,0.0001,47190.0,47186.0,0.000218]
[1641171108757,0.0001,47190.0,47189.0,0.28067134]
[1641171109556,0.1801,47190.0,47189.0,0.87309508]
[1641171110457,0.09035191,47190.0,47189.0,1.07009508]
[1641171110860,0.27035191,47190.0,47189.0,1.07009508]
[1641171111659,0.27035191,47190.0,47189.0,0.87309508]
[1641171111860,0.0001,47190.0,47189.0,0.87309508]
[1641171112060,0.0001,47190.0,47189.0,0.28067134]
[1641171112464,0.0001,47190.0,47189.0,0.47667134]
[1641171113361,0.0001,47190.0,47189.0,0.56475134]
[1641171113765,0.0001,47190.0,47189.0,0.36875134]
[1641171113962,0.0001,47190.0,47189.0,1.48754534]
[1641171114163,0.0001,47190.0,47189.0,1.50873316]
[1641171114363,0.0001,47190.0,47189.0,2.01852016]
[1641171115471,0.0001,47190.0,47189.0,2.84791339]
[1641171115666,0.0001,47190.0,47189.0,2.65391339]
[1641171116266,0.0001,47190.0,47189.0,1.82452016]
[1641171116468,0.0001,47190.0,47189.0,3.20436764]
[1641171117267,0.0001,47190.0,47189.0,2.0315499]
[1641171117668,0.0001,47190.0,47189.0,1.8365499]
[1641171118269,0.36101512,47190.0,47189.0,2.14310216]
[1641171118469,0.36101512,47190.0,47189.0,2.33610216]
[1641171119773,0.36101512,47190.0,47189.0,2.14310216]
[1641171120373,0.36101512,47190.0,47189.0,2.33610216]
[1641171121173,0.0001,47190.0,47189.0,2.33610216]
[1641171121376,0.0001,47190.0,47189.0,2.43554308]
[1641171121573,0.0001,47190.0,47189.0,3.73136945]
[1641171121774,0.0001,47190.0,47189.0,3.53836945]
[1641171122375,0.0001,47190.0,47189.0,2.33510216]
[1641171123377,0.36102927,47190.0,47189.0,2.33510216]
[1641171123775,0.36102927,47190.0,47189.0,2.14310216]
[1641171124376,0.36102927,47190.0,47189.0,2.33510216]
[1641171124777,0.36102927,47190.0,47189.0,2.32307242]
[1641171125276,0.36102927,47190.0,47189.0,2.3351023]
[1641171125877,0.36102927,47190.0,47189.0,2.1431023]
[1641171126278,0.36102927,47190.0,47189.0,1.0341023]
[1641171126480,0.36102927,47190.0,47189.0,0.9015213]
[1641171126677,0.36102927,47190.0,47189.0,0.88949142]
[1641171126877,0.36102927,47190.0,47189.0,0.58293916]
[1641171127078,0.36102927,47190.0,47189.0,0.49485916]
[1641171127677,0.36102927,47190.0,47189.0,0.30185916]
[1641171127878,0.0001,47190.0,47189.0,0.30185916]
[1641171128078,0.0001,47190.0,47189.0,0.28067134]
[1641171128281,0.09035191,47190.0,47189.0,1.17904839]
[1641171128478,0.09035191,47190.0,47189.0,0.17100001]
[1641171128679,0.09035191,47190.0,47182.0,1.42192141]
[1641171128879,0.18,47183.0,47181.0,0.30655226]
[1641171129179,0.39116567,47183.0,47181.0,0.30655226]
[1641171129580,0.0001,47182.0,47175.0,1.56650566]
[1641171129781,0.0001,47182.0,47177.0,0.02119559]
[1641171129982,0.18,47178.0,47177.0,0.02119559]
[1641171130382,0.18,47178.0,47177.0,0.20319559]
[1641171130785,0.54093194,47178.0,47177.0,0.20319559]
[1641171131883,0.36093194,47178.0,47177.0,0.02119559]
[1641171132283,1.02217452,47181.0,47177.0,0.02119559]
[1641171132584,0.84217452,47179.0,47177.0,0.20919559]
[1641171133800,0.84217452,47179.0,47177.0,0.02119559]
[1641171133995,0.9408968,47180.0,47177.0,0.02119559]
[1641171134400,0.84217452,47179.0,47177.0,0.20919559]
[1641171134602,0.18,47178.0,47177.0,0.20919559]
[1641171134803,0.84217452,47179.0,47177.0,0.20919559]
[1641171134996,0.18,47178.0,47177.0,0.20919559]
[1641171135795,0.18,47178.0,47177.0,0.02119559]
[1641171135998,0.27872228,47178.0,47177.0,0.02119559]
[1641171136396,0.45172228,47178.0,47177.0,0.20719559]
[1641171136696,0.27172228,47178.0,47177.0,0.20719559]
[1641171136896,1.2938968,47178.0,47177.0,0.20719559]
[1641171137096,1.1138968,47178.0,47177.0,0.20719559]
[1641171137408,0.45172228,47178.0,47177.0,0.20719559]
[1641171137697,0.27872228,47178.0,47177.0,0.02119559]
[1641171138096,0.09872228,47178.0,47177.0,0.02119559]
[1641171138499,0.09872228,47178.0,47177.0,0.21119559]
[1641171138697,0.09872228,47178.0,47177.0,0.19]
[1641171138897,0.09872228,47178.0,47177.0,0.21119346]
[1641171139599,0.84238866,47179.0,47177.0,1.51098561]
[1641171139799,0.84238866,47179.0,47177.0,1.38811561]
[1641171140400,0.84238866,47179.0,47177.0,1.57911561]
[1641171140900,0.84248866,47180.0,47177.0,1.57911561]
[1641171141101,0.84248866,47180.0,47177.0,2.68811561]
[1641171141499,0.84248866,47180.0,47178.0,0.316679]
[1641171141698,0.84238866,47179.0,47178.0,0.316679]
[1641171142498,0.84248866,47180.0,47178.0,0.188]
[1641171143704,0.84238866,47179.0,47178.0,0.188]
[1641171143900,0.84238866,47179.0,47177.0,1.32098561]
[1641171144500,0.84238866,47179.0,47177.0,1.50998561]
[1641171145800,0.84238866,47179.0,47177.0,1.32098561]
[1641171146402,0.84248866,47180.0,47177.0,1.50998561]
[1641171146599,0.84248866,47180.0,47177.0,1.57297561]
[1641171147803,0.84238866,47179.0,47177.0,1.38397561]
[1641171148402,0.84238866,47179.0,47177.0,1.57197561]
[1641171149406,0.18,47198.0,47178.0,1.67218522]
[1641171149606,0.18,47192.0,47187.0,2.39889121]
[1641171149805,0.18,47192.0,47187.0,2.47779121]
[1641171150406,0.18,47192.0,47187.0,2.66579121]
[1641171150605,1.44369691,47194.0,47187.0,2.66579121]
[1641171150805,0.32033567,47188.0,47187.0,2.66579121]
[1641171151808,0.32033567,47188.0,47187.0,2.47779121]
[1641171152009,0.14033567,47188.0,47187.0,2.39889121]
[1641171152509,0.49533567,47188.0,47187.0,2.58289121]
[1641171153407,0.49533567,47188.0,47187.0,2.64839121]
[1641171153807,0.49533567,47188.0,47187.0,2.46439121]
[1641171153808,0.32033567,47188.0,47187.0,2.46439121]
[1641171154410,0.32033567,47188.0,47187.0,2.64939121]
[1641171155310,0.14033567,47188.0,47187.0,2.64939121]
[1641171155513,0.32033567,47188.0,47187.0,2.64939121]
[1641171155710,0.32033567,47188.0,47187.0,2.46439121]
[1641171155913,0.32033567,47188.0,47187.0,2.39889121]
[1641171156511,0.14033567,47188.0,47187.0,2.58389121]
[1641171157813,0.14033567,47188.0,47187.0,3.22616903]
[1641171158413,0.14033567,47188.0,47187.0,3.41116903]
[1641171158712,0.32033567,47188.0,47187.0,3.41116903]
[1641171159114,0.32033567,47188.0,47187.0,1.01227782]
[1641171159813,0.32033567,47188.0,47187.0,0.82727782]
[1641171160415,0.49933567,47188.0,47187.0,1.01027782]
[1641171161724,0.32033567,47188.0,47187.0,0.59119163]
[1641171162017,0.14033567,47188.0,47187.0,0.59119163]
[1641171162228,0.32033567,47188.0,47187.0,0.59119163]
[1641171162418,0.49833567,47188.0,47187.0,0.77519163]
[1641171163323,0.49833567,47188.0,47187.0,0.5393972]
[1641171163719,0.32033567,47188.0,47187.0,0.3553972]
[1641171164420,0.32033567,47188.0,47187.0,0.5393972]
[1641171164421,0.49833567,47188.0,47187.0,0.5393972]
[1641171164823,0.5935921,47188.0,47187.0,0.5393972]
[1641171165824,0.4155921,47188.0,47187.0,0.3553972]
[1641171166123,0.2355921,47188.0,47186.0,0.59119163]
[1641171166623,0.4115921,47188.0,47187.0,0.184]
[1641171167125,1.15833406,47188.0,47187.0,0.77519163]
[1641171167726,0.98233406,47188.0,47187.0,0.59119163]
[1641171168025,0.14033567,47188.0,47187.0,0.59119163]
[1641171168425,0.31033567,47188.0,47187.0,0.77519163]
[1641171169126,0.31033567,47188.0,47187.0,0.184]
[1641171169426,1.15232854,47188.0,47187.0,0.184]
[1641171169624,1.15232854,47188.0,47186.0,0.82727782]
[1641171169827,0.98232854,47188.0,47186.0,0.82727782]
[1641171170225,0.98232854,47188.0,47187.0,0.59222277]
[1641171170427,1.15232854,47188.0,47187.0,0.59222277]
[1641171171728,0.98232854,47188.0,47187.0,0.59222277]
[1641171172430,0.32333567,47188.0,47187.0,0.77522277]
[1641171173129,0.32333567,47188.0,47187.0,0.183]
[1641171173729,0.14033567,47188.0,47186.0,0.59222277]
[1641171174329,0.14033567,47188.0,47185.0,0.82727782]
[1641171174530,0.32333567,47188.0,47187.0,0.82727782]
[1641171175736,0.14033567,47188.0,47187.0,0.82727782]
[1641171176531,0.32333567,47188.0,47187.0,1.00927782]
[1641171177731,0.14033567,47188.0,47187.0,0.82727782]
[1641171178036,0.14033567,47188.0,47186.0,0.82727782]
[1641171178431,0.31933567,47188.0,47187.0,0.183]
[1641171179737,0.14033567,47188.0,47186.0,0.82727782]
[1641171180339,0.14033567,47188.0,47184.0,1.18272093]
[1641171180340,0.14033567,47188.0,47187.0,0.82727782]
[1641171180539,0.31733567,47188.0,47187.0,0.82727782]
[1641171181240,0.31733567,47188.0,47186.0,1.01027782]
[1641171181840,0.14033567,47188.0,47186.0,0.82727782]
[1641171182453,0.31733567,47188.0,47187.0,0.82727782]
[1641171183353,0.41031888,47188.0,47187.0,0.82727782]
[1641171184056,0.23331888,47188.0,47187.0,0.82727782]
[1641171184454,0.41731888,47188.0,47187.0,1.01027782]
[1641171185655,0.23331888,47188.0,47187.0,0.82727782]
[1641171186457,0.41731888,47188.0,47187.0,1.01027782]
[1641171187860,0.23331888,47188.0,47187.0,0.82727782]
[1641171188559,0.41731888,47188.0,47187.0,1.01027782]
[1641171189862,0.23331888,47188.0,47187.0,0.82727782]
[1641171190465,0.59731888,47188.0,47187.0,1.01027782]
[1641171191562,0.59731888,47188.0,47187.0,1.07168782]
[1641171191763,0.41331888,47188.0,47187.0,0.88868782]
[1641171192465,0.59831888,47188.0,47187.0,1.07168782]
[1641171193966,0.41331888,47188.0,47187.0,0.88868782]
[1641171194466,0.59731888,47188.0,47187.0,1.07168782]